bitfinex-derivatives/quotes_BTCF0:USTF0_20251208
["timestamp","ask_amount","ask_price","bid_price","bid_amount"]
[1765183737787,0.0575,91865.0,91864.0,0.004]
[1765183739079,0.0387666,91848.0,91847.0,0.03996372]
[1765183739283,0.0686866,91848.0,91847.0,0.06963372]
[1765183739676,0.0686866,91848.0,91847.0,0.05872]
[1765183740084,0.0686866,91848.0,91847.0,0.02905]
[1765183740289,0.0716866,91848.0,91847.0,0.02905]
[1765183740489,0.0716866,91848.0,91847.0,0.05872]
[1765183741090,0.0716866,91848.0,91847.0,0.02905]
[1765183741293,0.0686873,91842.0,91841.0,0.05885275]
[1765183742592,0.0726873,91842.0,91841.0,0.05885275]
[1765183742986,0.0608,91842.0,91841.0,0.05885275]
[1765183743187,0.0618,91842.0,91841.0,0.05885275]
[1765183743388,0.0638,91842.0,91841.0,0.05885275]
[1765183745386,0.0628,91842.0,91841.0,0.05885275]
[1765183745691,0.0628,91842.0,91841.0,0.00013275]
[1765183747285,0.0578,91839.0,91838.0,0.00016323]
[1765183747791,0.0578,91824.0,91823.0,0.0696095]
[1765183747987,0.0578,91824.0,91819.0,0.02827693]
[1765183747988,0.02788,91834.0,91833.0,0.07601]
[1765183748295,9.126e-05,91834.0,91833.0,0.0868984]
[1765183749387,0.00109126,91834.0,91833.0,0.0868984]
[1765183750698,0.00079527,91834.0,91833.0,0.0868984]
[1765183751200,0.00016332,91843.0,91842.0,0.0696073]
[1765183751692,0.0108857,91856.0,91855.0,0.0696058]
[1765183751894,0.0108857,91856.0,91855.0,0.05872]
[1765183752201,0.0658357,91856.0,91855.0,0.05872]
[1765183753993,0.0688357,91856.0,91855.0,0.05872]
[1765183754194,0.0748357,91856.0,91855.0,0.05872]
[1765183755003,0.009,91856.0,91855.0,0.0696058]
[1765183756594,0.009,91856.0,91855.0,0.05872]
[1765183756795,0.06466,91856.0,91855.0,0.05872]
[1765183760192,0.05566,91849.0,91848.0,0.07441]
[1765183760395,0.0665465,91849.0,91848.0,0.05712]
[1765183760594,0.05566,91849.0,91848.0,0.05712]
[1765183761201,0.05766,91849.0,91848.0,0.05712]
[1765183761706,0.06066,91849.0,91848.0,0.05712]
[1765183764500,0.05566,91847.0,91846.0,0.00016332]
[1765183765111,0.05566,91847.0,91846.0,0.03014332]
[1765183765318,0.05566,91847.0,91846.0,0.05728332]
[1765183766199,0.07187,91847.0,91846.0,0.00016332]
[1765183766605,0.05566,91831.0,91830.0,0.17632]
[1765183766806,0.0665486,91831.0,91830.0,0.17632]
[1765183767808,0.0665486,91831.0,91830.0,0.17932]
[1765183768006,0.0665486,91831.0,91830.0,0.18032]
[1765183768307,0.05566,91831.0,91830.0,0.06112]
[1765183769498,0.05566,91831.0,91830.0,0.05712]
[1765183769698,0.05866,91831.0,91830.0,0.05712]
[1765183769898,0.05566,91822.0,91821.0,0.05728332]
[1765183770708,0.05566,91822.0,91821.0,0.00016332]
[1765183771111,0.05666,91822.0,91821.0,0.00016332]
[1765183771307,0.05966,91822.0,91821.0,0.00016332]
[1765183772814,0.06266,91822.0,91821.0,0.00016332]
[1765183773412,0.06166,91822.0,91821.0,0.00016332]
[1765183773912,0.06166,91822.0,91805.0,0.074]
[1765183773913,0.05566,91806.0,91805.0,0.074]
[1765183774112,0.05566,91806.0,91805.0,0.05712]
[1765183774503,0.0108928,91797.0,91791.0,0.05584191]
[1765183774707,0.05566,91792.0,91791.0,0.074]
[1765183775417,0.05566,91792.0,91791.0,0.05712]
[1765183776610,0.05566,91792.0,91791.0,0.05812]
[1765183776811,0.07187,91792.0,91791.0,0.001]
[1765183777917,0.39651,91792.0,91791.0,0.001]
[1765183779313,0.07187,91792.0,91791.0,0.001]
[1765183779816,0.05566,91783.0,91782.0,0.00016332]
[1765183780113,0.0665543,91783.0,91782.0,0.00016332]
[1765183780619,0.0665543,91783.0,91782.0,0.03014332]
[1765183780809,0.0665543,91783.0,91782.0,0.05728332]
[1765183781210,0.05566,91783.0,91782.0,0.05728332]
[1765183781819,0.05566,91783.0,91782.0,0.06128332]
[1765183782212,0.05566,91783.0,91782.0,0.06628332]
[1765183783324,0.05566,91783.0,91782.0,0.07717782]
[1765183783523,0.05566,91783.0,91782.0,0.07518782]
[1765183785712,0.01621,91800.0,91782.0,0.07518782]
[1765183785713,0.05618,91795.0,91794.0,0.066023]
[1765183785914,0.02778,91795.0,91794.0,0.066023]
[1765183786519,0.05618,91795.0,91794.0,0.066023]
[1765183786724,0.05618,91795.0,91794.0,0.069023]
[1765183789828,0.05618,91795.0,91794.0,0.05813]
[1765183793827,0.05618,91795.0,91794.0,0.003]
[1765183794418,0.05618,91783.0,91782.0,0.02717332]
[1765183794617,0.0670743,91783.0,91782.0,0.02717332]
[1765183795322,0.0670743,91783.0,91782.0,0.00016332]
[1765183795929,0.0670743,91783.0,91782.0,0.00516332]
[1765183796127,0.0670743,91783.0,91782.0,0.03217332]
[1765183796728,0.0670743,91783.0,91782.0,0.03617332]
[1765183798626,0.0670743,91783.0,91782.0,0.00916332]
[1765183799027,0.5731143,91783.0,91782.0,0.00916332]
[1765183800332,0.028,91761.0,91760.0,0.20798181]
[1765183800538,0.0681754,91775.0,91774.0,0.05614]
[1765183801440,0.06827532,91775.0,91774.0,0.05614]
[1765183801629,0.05737992,91775.0,91774.0,0.05614]
[1765183802127,9.992e-05,91775.0,91774.0,0.05614]
[1765183802738,9.992e-05,91775.0,91774.0,0.06114]
[1765183803335,0.00016342,91784.0,91783.0,0.05614]
[1765183803540,0.02816342,91784.0,91783.0,0.05614]
[1765183804236,0.02816342,91784.0,91783.0,0.0670343]
[1765183804237,0.00016342,91784.0,91783.0,0.0670343]
[1765183804629,0.00016342,91784.0,91783.0,0.0690343]
[1765183805440,0.00216342,91784.0,91783.0,0.0690343]
[1765183805836,0.05944342,91784.0,91783.0,0.0690343]
[1765183806036,0.05944342,91784.0,91783.0,0.02937]
[1765183806942,0.05944342,91784.0,91783.0,0.002]
[1765183806943,0.07594342,91784.0,91783.0,0.002]
[1765183807634,0.34222342,91784.0,91783.0,0.002]
[1765183808031,0.00216342,91784.0,91783.0,0.05814]
[1765183808342,0.06444342,91784.0,91783.0,0.05814]
[1765183809245,0.06444342,91784.0,91783.0,0.05614]
[1765183809442,0.06644342,91784.0,91783.0,0.05614]
[1765183815041,0.00916342,91784.0,91783.0,0.05614]
[1765183815247,0.03652342,91784.0,91783.0,0.05614]
[1765183815547,0.0108948,91780.0,91776.0,0.01773]
[1765183815748,0.066545,91777.0,91776.0,0.05922]
[1765183815940,0.05565,91777.0,91776.0,0.05922]
[1765183816552,0.066545,91777.0,91776.0,0.05922]
[1765183817150,0.066546,91769.0,91768.0,0.11591191]
[1765183817350,0.066546,91769.0,91768.0,0.07695]
[1765183819051,0.066546,91769.0,91768.0,0.05922]
[1765183819254,0.066546,91769.0,91768.0,0.06122]
[1765183819752,0.068546,91769.0,91768.0,0.07899]
[1765183820051,0.068546,91769.0,91768.0,0.09602418]
[1765183821554,0.002,91769.0,91768.0,0.10692028]
[1765183821751,0.002,91769.0,91768.0,0.14588219]
[1765183823241,0.002,91769.0,91768.0,0.10692028]
[1765183823447,0.002,91769.0,91768.0,0.14592529]
[1765183824252,0.05765,91769.0,91768.0,0.10692028]
[1765183825058,0.05765,91769.0,91768.0,0.09602418]
[1765183825257,0.05765,91769.0,91768.0,0.1172665]
[1765183825457,0.05765,91769.0,91768.0,0.07825418]
[1765183825659,0.02936,91769.0,91768.0,0.09602418]
[1765183825847,0.05765,91769.0,91768.0,0.09602418]
[1765183829356,0.05765,91769.0,91768.0,0.11726067]
[1765183830661,0.002,91769.0,91768.0,0.07825418]
[1765183830849,0.00016342,91784.0,91783.0,0.05922]
[1765183831049,0.00016342,91784.0,91783.0,0.07625418]
[1765183831050,0.02752342,91784.0,91783.0,0.07625418]
[1765183831264,0.05581342,91784.0,91783.0,0.07625418]
[1765183832151,0.05781342,91784.0,91783.0,0.07625418]
[1765183834359,0.07426342,91784.0,91783.0,0.01703418]
[1765183834854,0.05781342,91784.0,91783.0,0.07625418]
[1765183836259,0.06081342,91784.0,91783.0,0.07625418]
[1765183839562,0.06081342,91784.0,91783.0,0.01703418]
[1765183839756,0.58342342,91784.0,91783.0,0.01703418]
[1765183840262,0.52777342,91784.0,91772.0,0.0108956]
[1765183840461,0.05565,91783.0,91782.0,0.05922]
[1765183840662,0.0665443,91783.0,91782.0,0.07625346]
[1765183840964,0.5727043,91783.0,91782.0,0.07625346]
[1765183841461,0.0665443,91783.0,91782.0,0.07625346]
[1765183841759,0.5727043,91783.0,91782.0,0.07625346]
[1765183842756,0.5747043,91783.0,91782.0,0.07625346]
[1765183842957,0.5777043,91783.0,91782.0,0.07625346]
[1765183845466,0.56681,91783.0,91782.0,0.07625346]
[1765183846354,0.5777043,91783.0,91782.0,0.07625346]
[1765183848164,0.0715443,91783.0,91782.0,0.07625346]
[1765183848369,0.5775843,91783.0,91782.0,0.07625346]
[1765183849270,0.0715443,91783.0,91782.0,0.07625346]
[1765183849660,0.5775843,91783.0,91782.0,0.07625346]
[1765183849968,0.5384,91783.0,91782.0,0.09360346]
[1765183850167,0.005,91783.0,91782.0,0.09360346]
[1765183850367,0.03492,91783.0,91782.0,0.09360346]
[1765183850768,0.06488,91783.0,91782.0,0.09360346]
[1765183852073,0.005,91783.0,91782.0,0.09360346]
[1765183853664,0.00016342,91784.0,91783.0,0.0687143]
[1765183853876,0.00016342,91784.0,91783.0,0.08574776]
[1765183854575,0.00016342,91784.0,91783.0,0.08574615]
[1765183854770,0.03008342,91784.0,91783.0,0.08574615]
[1765183854969,0.06004342,91784.0,91783.0,0.08574615]
[1765183855182,0.06204342,91784.0,91783.0,0.08574615]
[1765183855473,0.06204342,91784.0,91783.0,0.07485185]
[1765183855766,0.06004342,91784.0,91783.0,0.07485185]
[1765183855974,0.00116342,91784.0,91783.0,0.07485185]
[1765183856172,0.06104342,91784.0,91783.0,0.07485185]
[1765183856576,0.00116342,91784.0,91783.0,0.07485185]
[1765183865696,0.05749342,91784.0,91783.0,0.07485185]
[1765183866095,0.00116342,91784.0,91783.0,0.07485185]
[1765183867098,0.02954342,91784.0,91783.0,0.07485185]
[1765183869696,0.05749342,91784.0,91783.0,0.07485185]
[1765183871897,0.02954342,91784.0,91783.0,0.07485185]
[1765183873192,0.00116342,91784.0,91783.0,0.07485185]
[1765183875402,0.02884342,91784.0,91783.0,0.07485185]
[1765183875599,0.05829342,91784.0,91783.0,0.07485185]
[1765183875990,0.05829342,91784.0,91783.0,0.01703185]
[1765183880608,0.56425342,91784.0,91783.0,0.01703185]
[1765183881097,0.06029342,91784.0,91783.0,0.01703185]
[1765183881302,0.44277342,91784.0,91783.0,0.01703185]
[1765183881697,0.43977342,91784.0,91783.0,0.01703185]
[1765183882007,0.44277342,91784.0,91783.0,0.01703185]
[1765183882508,0.44877342,91784.0,91783.0,0.01703185]
[1765183883007,0.44277342,91784.0,91783.0,0.01703185]
[1765183883204,0.44777342,91784.0,91783.0,0.01703185]
[1765183887105,0.57121342,91784.0,91783.0,0.01703185]
[1765183888711,0.06529342,91784.0,91783.0,0.01703185]
[1765183888910,0.57121342,91784.0,91783.0,0.01703185]
[1765183891515,0.57121342,91784.0,91783.0,0.07401185]
[1765183892017,0.06529342,91784.0,91783.0,0.07401185]
[1765183892315,0.57121342,91784.0,91783.0,0.07401185]
[1765183892717,0.06529342,91784.0,91783.0,0.07401185]
[1765183892919,0.57117342,91784.0,91783.0,0.07401185]
[1765183893621,0.56817342,91784.0,91783.0,0.07401185]
[1765183893819,0.57117342,91784.0,91783.0,0.07401185]
[1765183894117,0.56617342,91784.0,91783.0,0.07401185]
[1765183894413,0.57017342,91784.0,91783.0,0.07401185]
[1765183897427,0.00716342,91784.0,91783.0,0.08490615]
[1765183897823,0.03484342,91784.0,91783.0,0.08490615]
[1765183898418,0.06429342,91784.0,91783.0,0.08490615]
[1765183898619,0.06229342,91784.0,91783.0,0.08490615]
[1765183898832,0.05829342,91784.0,91783.0,0.08590615]
[1765183899124,0.05829342,91784.0,91783.0,0.07501185]
[1765183900824,0.05829342,91784.0,91783.0,0.07401185]
[1765183901022,0.05929342,91784.0,91783.0,0.07401185]
[1765183901623,0.05829342,91784.0,91783.0,0.07401185]
[1765183901831,0.06029342,91784.0,91783.0,0.07401185]
[1765183902330,0.06029342,91784.0,91783.0,0.07401265]
[1765183908337,0.06029342,91784.0,91783.0,0.01703265]
[1765183909032,0.45785342,91784.0,91783.0,0.01703265]
[1765183909949,0.56609342,91784.0,91783.0,0.01703265]
[1765183913645,0.56609342,91784.0,91783.0,0.07366265]
[1765183913954,0.00316342,91784.0,91783.0,0.07366265]
[1765183914147,0.03254342,91784.0,91783.0,0.07366265]
[1765183914454,0.06154342,91784.0,91783.0,0.07366265]
[1765183915150,0.06054342,91784.0,91783.0,0.07366265]
[1765183915450,0.05854342,91784.0,91783.0,0.07366265]
[1765183915652,0.06054342,91784.0,91783.0,0.07366265]
[1765183916352,0.05854342,91784.0,91783.0,0.07366265]
[1765183916553,0.05954342,91784.0,91783.0,0.07366247]
[1765183916853,0.05954342,91784.0,91783.0,0.07466247]
[1765183921449,0.03054342,91784.0,91783.0,0.07466247]
[1765183921648,0.00116342,91784.0,91783.0,0.07466247]
[1765183922944,0.02846342,91784.0,91783.0,0.07466247]
[1765183923145,0.05605342,91784.0,91783.0,0.07466247]
[1765183928661,0.05605342,91784.0,91783.0,0.07466223]
[1765183931960,0.00116342,91784.0,91783.0,0.07466223]
[1765183933062,0.05792342,91784.0,91783.0,0.07466223]
[1765183935756,0.05792342,91784.0,91783.0,0.04649223]
[1765183936155,0.05792342,91784.0,91783.0,0.07399223]
[1765183941464,0.00116342,91784.0,91783.0,0.07399223]
[1765183942469,0.05792342,91784.0,91783.0,0.07399223]
[1765183942868,0.02925342,91784.0,91783.0,0.07399223]
[1765183944271,0.05792342,91784.0,91783.0,0.07399223]
[1765183948676,0.56368342,91784.0,91783.0,0.01803223]
[1765183948874,0.05792342,91784.0,91783.0,0.01803223]
[1765183949073,0.56368342,91784.0,91783.0,0.01803223]
[1765183949468,0.56368342,91784.0,91783.0,0.04651223]
[1765183950165,0.56368342,91784.0,91783.0,0.07401223]
[1765183952775,0.05792342,91784.0,91783.0,0.07401223]
[1765183953272,0.47196342,91784.0,91783.0,0.07401223]
[1765183953975,0.05792342,91784.0,91783.0,0.07401223]
[1765183954176,0.56368342,91784.0,91783.0,0.07401223]
[1765183958177,0.00116342,91784.0,91783.0,0.07401223]
[1765183958578,0.02925342,91784.0,91783.0,0.07401223]
[1765183958775,0.05792342,91784.0,91783.0,0.07401223]
[1765183961077,0.00116342,91784.0,91783.0,0.07401223]
[1765183961765,0.00116342,91784.0,91783.0,0.11306974]
[1765183963970,0.00116342,91784.0,91783.0,0.07401223]
[1765183978588,0.00116342,91784.0,91783.0,0.07401148]
[1765183981790,0.05883992,91794.0,91793.0,0.05883]
[1765183981977,0.0108913,91809.0,91805.0,0.05883]
[1765183982179,0.0671809,91812.0,91811.0,0.05883]
[1765183982375,0.05629,91812.0,91811.0,0.07586148]
[1765183984496,0.05829,91812.0,91811.0,0.07586148]
[1765183984687,0.06829,91812.0,91811.0,0.07586148]
[1765183985095,0.05829,91812.0,91811.0,0.07586148]
[1765183985391,0.05929,91812.0,91811.0,0.07586148]
[1765183994889,0.003,91812.0,91811.0,0.07586148]
[1765183995499,0.0012047,91812.0,91811.0,0.07586148]
[1765183996000,0.00016342,91821.0,91820.0,0.0844399]
[1765183996192,0.00016342,91821.0,91820.0,0.10147138]
[1765183998205,0.00016342,91821.0,91820.0,0.10547138]
[1765183998802,0.00016342,91821.0,91820.0,0.10447138]
[1765183999305,0.00016342,91821.0,91820.0,0.10547138]
[1765183999524,0.00016342,91821.0,91820.0,0.10847138]
[1765184001401,0.00016342,91821.0,91820.0,0.10447138]
[1765184001601,0.00016342,91821.0,91820.0,0.10847138]
[1765184007502,0.05800342,91821.0,91820.0,0.10447138]
[1765184007702,0.05800342,91821.0,91820.0,0.10847138]
[1765184008602,0.02942342,91821.0,91820.0,0.10447138]
[1765184008907,0.05800342,91821.0,91820.0,0.10447138]
[1765184009702,0.05800342,91821.0,91820.0,0.08844138]
[1765184009904,0.05800342,91821.0,91820.0,0.07755148]
[1765184010206,0.05800342,91821.0,91820.0,0.07655148]
[1765184011211,0.05900342,91821.0,91820.0,0.07655148]
[1765184011413,0.06000342,91821.0,91820.0,0.07455148]
[1765184011811,0.05900342,91821.0,91820.0,0.07455148]
[1765184012114,0.06000342,91821.0,91820.0,0.07455148]
[1765184012811,0.06000342,91821.0,91820.0,0.04672148]
[1765184013013,0.06000342,91821.0,91820.0,0.01703148]
[1765184013217,0.05784,91803.0,91802.0,0.05768342]
[1765184014613,0.05784,91803.0,91802.0,0.06168342]
[1765184014815,0.05784,91803.0,91802.0,0.06468342]
[1765184015316,0.05784,91803.0,91802.0,0.06068342]
[1765184015519,0.05784,91803.0,91802.0,0.06468342]
[1765184018318,0.05784,91812.0,91811.0,0.02783]
[1765184018521,0.05784,91812.0,91811.0,0.05752]
[1765184020018,0.12931642,91820.0,91811.0,0.05752]
[1765184020019,0.05784,91818.0,91817.0,0.05752]
[1765184021225,0.05884,91818.0,91817.0,0.05752]
[1765184022826,0.05784,91818.0,91817.0,0.05752]
[1765184023027,0.05884,91818.0,91817.0,0.05752]
[1765184024414,0.03026,91818.0,91817.0,0.05752]
[1765184024621,0.05786342,91821.0,91820.0,0.07489]
[1765184025728,0.00016342,91821.0,91820.0,0.07489]
[1765184025921,0.05786342,91821.0,91820.0,0.07489]
[1765184026820,0.05886342,91821.0,91820.0,0.07489]
[1765184027229,0.05886342,91821.0,91820.0,0.07689]
[1765184027522,0.05786342,91821.0,91820.0,0.02995]
[1765184027726,0.05786342,91821.0,91820.0,0.05994]
[1765184028321,0.05786342,91821.0,91820.0,0.002]
[1765184028521,0.56338342,91821.0,91820.0,0.002]
[1765184028923,0.56338342,91821.0,91810.0,0.19860752]
[1765184028924,0.0577,91811.0,91810.0,0.19860752]
[1765184029131,0.0577,91811.0,91810.0,0.0857811]
[1765184030231,0.0577,91811.0,91810.0,0.0877811]
[1765184032326,0.02974,91811.0,91810.0,0.0877811]
[1765184032826,0.0577,91811.0,91810.0,0.0877811]
[1765184036428,0.0577,91811.0,91810.0,0.07689]
[1765184036828,0.0577,91811.0,91810.0,0.05994]
[1765184038935,0.0577,91811.0,91810.0,0.002]
[1765184041141,0.0577,91811.0,91810.0,0.03082]
[1765184041741,0.02974,91811.0,91810.0,0.0777]
[1765184042039,0.05783,91811.0,91810.0,0.0777]
[1765184042436,0.05570342,91821.0,91820.0,0.05778]
[1765184042631,0.05570342,91821.0,91820.0,0.0757]
[1765184044847,0.05670342,91821.0,91820.0,0.0757]
[1765184045040,0.00216342,91821.0,91820.0,0.0757]
[1765184045642,0.00116342,91821.0,91820.0,0.0757]
[1765184046246,0.05670342,91821.0,91820.0,0.05778]
[1765184046545,0.05670342,91821.0,91820.0,0.05978]
[1765184046546,0.05570342,91821.0,91820.0,0.05978]
[1765184047450,0.05570342,91821.0,91820.0,0.0777]
[1765184048147,0.05570342,91821.0,91820.0,0.0757]
[1765184048338,0.05570342,91821.0,91820.0,0.05778]
[1765184048748,0.05670342,91821.0,91820.0,0.05778]
[1765184049747,0.05770342,91821.0,91820.0,0.05778]
[1765184049951,0.05770342,91821.0,91820.0,0.0757]
[1765184050939,0.05670342,91821.0,91820.0,0.0757]
[1765184051148,0.06859322,91821.0,91820.0,0.0757]
[1765184051952,0.06859322,91821.0,91820.0,0.07453]
[1765184051953,0.06759322,91821.0,91820.0,0.07453]
[1765184052154,0.05670342,91821.0,91820.0,0.07453]
[1765184052958,0.02861342,91821.0,91820.0,0.07453]
[1765184053159,0.00116342,91821.0,91820.0,0.07453]
[1765184054158,0.00216342,91821.0,91820.0,0.07453]
[1765184054456,0.00116342,91821.0,91820.0,0.07453]
[1765184054656,0.00116342,91821.0,91820.0,0.07653]
[1765184055256,0.00116342,91821.0,91820.0,0.07753]
[1765184055459,0.00016342,91821.0,91820.0,0.07753]
[1765184055858,0.00016342,91821.0,91820.0,0.07653]
[1765184056757,0.02796342,91821.0,91820.0,0.07653]
[1765184057057,0.05546342,91821.0,91820.0,0.07653]
[1765184057561,0.05546342,91821.0,91820.0,0.07753]
[1765184058055,0.05546342,91821.0,91820.0,0.07553]
[1765184058259,0.00016342,91821.0,91820.0,0.07553]
[1765184058651,0.00016342,91821.0,91820.0,0.07653]
[1765184060351,0.49476,91830.0,91829.0,0.05719]
[1765184060857,0.49476,91830.0,91829.0,0.0680789]
[1765184061756,0.49476,91830.0,91829.0,0.0700789]
[1765184063650,0.02796342,91839.0,91838.0,0.0680778]
[1765184064051,0.00016342,91839.0,91838.0,0.0680778]
[1765184064857,0.00216342,91839.0,91838.0,0.0680778]
[1765184067552,0.05746342,91839.0,91838.0,0.0680778]
[1765184074774,0.02996342,91839.0,91838.0,0.0680778]
[1765184074973,0.00216342,91839.0,91838.0,0.0680778]
[1765184076472,0.56074,91853.0,91852.0,0.0680761]
[1765184077767,0.56074,91853.0,91852.0,0.07879617]
[1765184077975,0.56774,91853.0,91852.0,0.07879617]
[1765184078771,0.56974,91853.0,91852.0,0.07879617]
[1765184079277,0.56974,91853.0,91852.0,0.0680761]
[1765184084680,0.08718705,91855.0,91854.0,0.0677759]
[1765184085073,0.11559705,91855.0,91854.0,0.0677759]
[1765184085582,0.05684,91855.0,91854.0,0.0677759]
[1765184085779,0.05884,91855.0,91854.0,0.0677759]
[1765184085981,0.06284,91855.0,91854.0,0.0677759]
[1765184091667,0.03443,91855.0,91854.0,0.0677759]
[1765184092675,0.006,91855.0,91854.0,0.0677759]
[1765184092874,0.00013193,91855.0,91854.0,0.0677759]
[1765184093084,0.00016333,91862.0,91861.0,0.0677751]
[1765184095585,0.00216333,91862.0,91861.0,0.0677751]
[1765184096886,0.11559705,91884.0,91883.0,0.0677725]
[1765184097388,0.05684,91884.0,91883.0,0.0677725]
[1765184098576,0.05684,91884.0,91883.0,0.0385825]
[1765184098781,0.05684,91884.0,91883.0,0.0663425]
[1765184099284,0.05684,91884.0,91883.0,0.0753425]
[1765184101786,0.02742333,91893.0,91892.0,0.0663414]
[1765184101981,0.05466333,91893.0,91892.0,0.0385814]
[1765184102183,0.05466333,91893.0,91892.0,0.0663414]
[1765184102977,0.05466333,91893.0,91892.0,0.0723414]
[1765184107394,0.02742333,91893.0,91892.0,0.0723414]
[1765184107896,0.05466333,91893.0,91892.0,0.0723414]
[1765184111992,0.05875705,91907.0,91906.0,0.0582]
[1765184112191,0.05875705,91917.0,91916.0,0.0690786]
[1765184112397,0.02907,91921.0,91920.0,0.0853681]
[1765184112689,0.05875705,91926.0,91922.0,0.0108779]
[1765184112894,0.05819,91926.0,91925.0,0.0582]
[1765184113290,0.01722,91932.0,91920.0,0.07449]
[1765184113598,0.05819,91921.0,91920.0,0.0853681]
[1765184114383,0.05819,91921.0,91920.0,0.0690781]
[1765184114787,0.05819,91921.0,91920.0,0.001]
[1765184115196,0.05819,91917.0,91916.0,0.00016323]
[1765184115495,0.05819,91917.0,91916.0,0.02954323]
[1765184115889,0.05819,91917.0,91916.0,0.05836323]
[1765184116490,0.05819,91918.0,91917.0,0.07449]
[1765184116882,0.05819,91918.0,91917.0,0.0853684]
[1765184117089,0.05819,91918.0,91917.0,0.0690784]
[1765184117296,0.05819,91918.0,91917.0,0.0853684]
[1765184117598,0.05819,91918.0,91917.0,0.0690784]
[1765184118097,0.05819,91917.0,91916.0,0.00516323]
[1765184118295,0.07541,91917.0,91916.0,0.00516323]
[1765184118484,0.05819,91917.0,91916.0,0.05836323]
[1765184119384,0.05819,91917.0,91916.0,0.05936323]
[1765184119588,0.05819,91917.0,91916.0,0.06336323]
[1765184120695,0.07541,91917.0,91916.0,0.00516323]
[1765184120995,0.05819,91917.0,91916.0,0.06336323]
[1765184122097,0.11694705,91917.0,91916.0,0.03454323]
[1765184122397,0.05819,91917.0,91916.0,0.03454323]
[1765184122598,0.05819,91917.0,91916.0,0.06336323]
[1765184124595,0.05819,91917.0,91916.0,0.07424183]
[1765184126401,0.07827292,91923.0,91922.0,0.0582]
[1765184126698,0.05819,91923.0,91922.0,0.0582]
[1765184127201,0.02907,91923.0,91922.0,0.0582]
[1765184127391,0.05819,91923.0,91922.0,0.0582]
[1765184127597,0.05819,91923.0,91920.0,0.027168]
[1765184127598,0.05819,91921.0,91920.0,0.010878]
[1765184127996,0.05819,91921.0,91920.0,0.069078]
[1765184129005,0.05819,91921.0,91920.0,0.003]
[1765184129299,0.14734092,91921.0,91920.0,0.003]
[1765184130206,0.069068,91921.0,91920.0,0.003]
[1765184130392,0.0690684,91917.0,91916.0,0.00116323]
[1765184130792,0.05819,91917.0,91916.0,0.03054323]
[1765184130997,0.05819,91917.0,91916.0,0.00116323]
[1765184131605,0.05819,91917.0,91916.0,0.00416323]
[1765184131900,0.05819,91905.0,91904.0,0.0402599]
[1765184132095,0.05819,91905.0,91904.0,0.0690799]
[1765184133703,0.02907,91905.0,91904.0,0.0690799]
[1765184134007,0.62181047,91909.0,91908.0,0.0853695]
[1765184135105,0.05854047,91909.0,91908.0,0.0853695]
[1765184135312,0.00016323,91914.0,91913.0,0.0582]
[1765184136801,1e-08,91914.0,91913.0,0.0582]
[1765184139005,0.05819,91938.0,91937.0,0.0690761]
[1765184139908,0.05819,91938.0,91937.0,0.0582]
[1765184141403,0.13624402,91938.0,91937.0,0.0582]
[1765184141604,0.13624402,91938.0,91937.0,0.0690761]
[1765184142117,0.05707,91938.0,91937.0,0.0690761]
[1765184145215,4.67e-06,91940.0,91939.0,0.0108758]
[1765184146311,0.05585467,91940.0,91939.0,0.0692658]
[1765184147013,0.02785467,91940.0,91939.0,0.0692658]
[1765184147510,4.67e-06,91940.0,91939.0,0.0692658]
[1765184147706,4.67e-06,91940.0,91939.0,0.0108758]
[1765184147920,0.00016254,91947.0,91946.0,0.05839]
[1765184148308,0.02801254,91947.0,91946.0,0.05839]
[1765184148523,0.00016254,91947.0,91946.0,0.05839]
[1765184150309,0.02801254,91947.0,91946.0,0.05839]
[1765184150618,0.05601254,91947.0,91946.0,0.05839]
[1765184152415,0.06801254,91947.0,91946.0,0.05839]
[1765184154516,0.01216254,91947.0,91946.0,0.069265]
[1765184155118,0.00108738,91965.0,91964.0,0.0692629]
[1765184155318,0.06780688,91990.0,91989.0,0.05839]
[1765184155519,0.05693708,91990.0,91989.0,0.05839]
[1765184155917,0.00108708,91990.0,91989.0,0.0692599]
[1765184156822,0.05693708,91990.0,91989.0,0.0692599]
[1765184157435,0.02893708,91990.0,91989.0,0.0692599]
[1765184157731,0.0108699,91989.0,91985.0,0.05839]
[1765184157922,0.05585,91981.0,91980.0,0.00016314]
[1765184158128,0.05585,91981.0,91980.0,0.02997314]
[1765184158327,0.05585,91981.0,91980.0,0.00016314]
[1765184159638,0.05585,91981.0,91980.0,0.00416314]
[1765184160728,0.05585,91981.0,91980.0,0.06205314]
[1765184160928,0.05585,91981.0,91980.0,0.03287314]
[1765184161333,0.05585,91981.0,91980.0,0.00416314]
[1765184162734,0.05585,91981.0,91980.0,0.06205314]
[1765184164334,0.0667209,91981.0,91980.0,0.00416314]
[1765184167338,0.0667209,91981.0,91960.0,0.05789]
[1765184167339,0.05615,91961.0,91960.0,0.05789]
[1765184167544,0.05615,91961.0,91960.0,0.02871]
[1765184167943,0.05615,91957.0,91956.0,0.0395838]
[1765184168348,0.05615,91948.0,91947.0,0.05805314]
[1765184168843,0.02824,91963.0,91952.0,0.01791]
[1765184169050,0.05615,91960.0,91959.0,0.0687635]
[1765184169233,0.05615,91960.0,91959.0,0.05789]
[1765184170842,0.05631285,91966.0,91965.0,0.0687628]
[1765184171646,0.00865285,91966.0,91959.0,0.001]
[1765184171846,0.05615,91960.0,91959.0,0.008]
[1765184172043,0.05615,91960.0,91959.0,0.007]
[1765184172541,0.02824,91948.0,91947.0,0.01103914]
[1765184172851,0.05562,91948.0,91947.0,0.00016314]
[1765184173945,0.49182,91948.0,91947.0,0.00016314]
[1765184174150,0.056,91932.0,91931.0,0.0696879]
[1765184174854,0.056,91932.0,91931.0,0.05881]
[1765184175443,0.056,91932.0,91931.0,0.06081]
[1765184176752,0.056,91932.0,91931.0,0.005]
[1765184177156,0.34852,91932.0,91931.0,0.005]
[1765184177356,0.056,91932.0,91931.0,0.005]
[1765184177647,0.3486,91932.0,91931.0,0.005]
[1765184177848,0.056,91932.0,91931.0,0.0433179]
[1765184178043,0.32312,91932.0,91931.0,0.03244]
[1765184178239,0.056,91928.0,91927.0,0.0403183]
[1765184178554,0.056,91928.0,91927.0,0.0696883]
[1765184178855,0.056,91927.0,91926.0,7.938e-05]
[1765184179046,0.056,91927.0,91926.0,0.05888938]
[1765184179743,0.056,91927.0,91926.0,0.02951938]
[1765184180554,0.056,91927.0,91926.0,0.05888938]
[1765184181155,0.058,91927.0,91926.0,0.05888938]